fUSD/lending_fUSD_20240327
["ID","MTS","AMOUNT","RATE_DAILY","PERIOD"]
[320705179,1711521069767,-603.54,0.0005589,120]
[320705180,1711521069777,-570.05,0.0005589,120]
[320705181,1711521069786,-196.167964,0.0005589,14]
[320705182,1711521069795,-880.23,0.0005589,120]
[320705183,1711521069806,-196.167964,0.0005589,14]
[320705184,1711521069817,-196.167964,0.0005589,14]
[320705185,1711521069827,-500.0,0.0005589,120]
[320705186,1711521069838,-1223.28,0.0005589,120]
[320705187,1711521069848,-196.167964,0.0005589,14]
[320705188,1711521069858,-196.167964,0.0005589,14]
[320705189,1711521069868,-196.167964,0.0005589,14]
[320705190,1711521069877,-507.44061869,0.0005589,120]
[320705191,1711521069889,-1225.28,0.0005589,120]
[320705192,1711521069900,-634.8,0.0005589,120]
[320705193,1711521069910,-500.0,0.0005589,120]
[320705194,1711521069920,-500.0,0.0005589,120]
[320705195,1711521069930,-500.0,0.0005589,120]
[320705196,1711521069940,-151.64164,0.0005589,120]
[320705197,1711521069950,-151.64164,0.0005589,120]
[320705198,1711521069960,-151.64164,0.0005589,120]
[320705199,1711521069971,-178.25786,0.0005589,120]
[320705200,1711521069980,-178.25786,0.0005589,120]
[320705201,1711521069991,-178.25786,0.0005589,120]
[320705202,1711521070001,-544.25,0.0005589,120]
[320705203,1711521070010,-500.0,0.0005589,120]
[320705204,1711521070019,-151.64164,0.0005589,120]
[320705205,1711521070029,-151.64164,0.0005589,120]
[320705206,1711521070038,-151.64164,0.0005589,120]
[320705207,1711521070048,-1166.22,0.0005589,120]
[320705208,1711521070058,-586.63,0.0005589,120]
[320705209,1711521070067,-178.25786,0.0005589,120]
[320705210,1711521070076,-178.25786,0.0005589,120]
[320705211,1711521070085,-178.25786,0.0005589,120]
[320705212,1711521070095,-500.0,0.0005589,120]
[320705213,1711521070104,-548.89,0.0005589,120]
[320705214,1711521070113,-669.42,0.0005589,120]
[320705215,1711521070123,-323.62679809,0.0005589,120]
[320705216,1711521070133,-508.59,0.0005589,120]
[320705217,1711521070142,-500.0,0.0005589,120]
[320705218,1711521070151,-1162.55,0.0005589,120]
[320705219,1711521070160,-2291.77,0.0005589,120]
[320705220,1711521070170,-500.0,0.0005589,120]
[320705221,1711521070179,-500.0,0.0005589,120]
[320705222,1711521070189,-549.54,0.0005589,120]
[320705223,1711521070198,-1366.31,0.0005589,120]
[320705224,1711521070208,-532.52,0.0005589,120]
[320705225,1711521070217,-500.0,0.0005589,120]
[320705226,1711521070227,-595.44,0.0005589,120]
[320705227,1711521070237,-7047.69,0.0005589,120]
[320705228,1711521070247,-502.56,0.0005589,120]
[320705229,1711521070257,-500.0,0.0005589,120]
[320705230,1711521070267,-1081.84,0.0005589,120]
[320705231,1711521070277,-822.65,0.0005589,120]
[320705232,1711521070287,-970.5,0.0005589,120]
[320705233,1711521070297,-491.324185,0.0005589,30]
[320705234,1711521070307,-491.324185,0.0005589,30]
[320705235,1711521070316,-491.324185,0.0005589,30]
[320705236,1711521070327,-1171.65,0.0005589,120]
[320705237,1711521070336,-500.0,0.0005589,120]
[320705238,1711521070345,-2222.27,0.0005589,120]
[320705239,1711521070355,-491.324185,0.0005589,30]
[320705240,1711521070365,-491.324185,0.0005589,30]
[320705241,1711521070375,-491.324185,0.0005589,30]
[320705242,1711521070385,-1237.02,0.0005589,120]
[320705243,1711521070394,-668.08,0.0005589,120]
[320705244,1711521070403,-608.98,0.0005589,120]
[320705245,1711521070413,-1242.46,0.0005589,120]
[320705246,1711521070423,-1294.32,0.0005589,120]
[320705247,1711521070432,-500.0,0.0005589,120]
[320705248,1711521070442,-535.17,0.0005589,120]
[320705249,1711521070451,-500.0,0.0005589,120]
[320705250,1711521070462,-500.0,0.0005589,120]
[320705251,1711521070473,-717.03,0.0005589,120]
[320705252,1711521070483,-500.0,0.0005589,120]
[320705253,1711521070494,-1040.25,0.0005589,120]
[320705254,1711521070504,-603.075319,0.0005589,120]
[320705255,1711521070513,-500.0,0.0005589,120]
[320705256,1711521070524,-603.075319,0.0005589,120]
[320705257,1711521070534,-500.0,0.0005589,120]
[320705258,1711521070545,-519.72862992,0.0005589,120]
[320705259,1711521070555,-603.075319,0.0005589,120]
[320705260,1711521070566,-174.61665585,0.0005589,120]
[320705261,1711521070576,-603.075319,0.0005589,120]
[320705262,1711521070585,-500.0,0.0005589,120]
[320705263,1711521070596,-500.0,0.0005589,120]
[320705264,1711521070605,-935.57,0.0005589,120]
[320705265,1711521070614,-500.0,0.0005589,120]
[320705266,1711521070625,-878.86,0.0005589,120]
[320705267,1711521070635,-500.0,0.0005589,120]
[320705268,1711521070645,-500.0,0.0005589,120]
[320705269,1711521070655,-528.22,0.0005589,120]
[320705270,1711521070665,-500.0,0.0005589,120]
[320705271,1711521070674,-876.06,0.0005589,120]
[320705272,1711521070683,-637.29,0.0005589,120]
[320705273,1711521070694,-999.87,0.0005589,120]
[320705274,1711521070704,-1392.245663,0.0005589,120]
[320705275,1711521070713,-1392.245663,0.0005589,120]
[320705276,1711521070723,-800.78,0.0005589,120]
[320705277,1711521070733,-500.0,0.0005589,120]
[320705278,1711521070745,-500.0,0.0005589,120]
[320705279,1711521070755,-1392.245663,0.0005589,120]
[320705280,1711521070764,-1392.245663,0.0005589,120]
[320705281,1711521070775,-500.0,0.0005589,120]
[320705282,1711521070784,-500.0,0.0005589,120]
[320705283,1711521070793,-500.0,0.0005589,120]
[320705284,1711521070802,-553.13,0.0005589,120]
[320705285,1711521070811,-574.19,0.0005589,120]
[320705286,1711521070823,-823.98,0.0005589,120]
[320705287,1711521070832,-608.00968626,0.0005589,120]
[320705288,1711521070841,-661.93,0.0005589,120]
[320705289,1711521070851,-500.0,0.0005589,120]
[320705290,1711521070860,-510.85726119,0.0005589,120]
[320705291,1711521070870,-1089.49,0.0005589,120]
[320705292,1711521070879,-827.87,0.0005589,120]
[320705293,1711521070888,-1454.5,0.0005589,120]
[320705294,1711521070899,-500.0,0.0005589,120]
[320705295,1711521070909,-151.0,0.0005589,120]
[320705296,1711521070918,-151.0,0.0005589,120]
[320705297,1711521070928,-500.0,0.0005589,120]
[320705298,1711521070937,-500.0,0.0005589,120]
[320705299,1711521070946,-1000.42,0.0005589,120]
[320705300,1711521070956,-201.505912,0.0005589,120]
[320705301,1711521070965,-201.505912,0.0005589,120]
[320705302,1711521070974,-1629.52,0.0005589,120]
[320705303,1711521070984,-201.505912,0.0005589,120]
[320705304,1711521070995,-201.505912,0.0005589,120]
[320705305,1711521071005,-500.0,0.0005589,120]
[320705306,1711521071014,-192.89413349,0.0005589,120]
[320705307,1711521071024,-649.78,0.0005589,120]
[320705308,1711521071034,-1484.09,0.0005589,120]
[320705309,1711521071046,-500.0,0.0005589,120]
[320705310,1711521071056,-151.0,0.0005589,120]
[320705311,1711521071066,-254.058657,0.0005589,120]
[320705312,1711521071075,-926.8,0.0005589,120]
[320705313,1711521071085,-500.0,0.0005589,120]
[320705314,1711521071094,-500.0,0.0005589,120]
[320705315,1711521071104,-500.0,0.0005589,120]
[320705316,1711521071113,-823.71,0.0005589,120]
[320705317,1711521071123,-967.31,0.0005589,120]
[320705318,1711521071132,-698.22,0.0005589,120]
[320705319,1711521071142,-500.0,0.0005589,120]
[320705320,1711521071151,-935.15,0.0005589,120]
[320705321,1711521071160,-151.0,0.0005589,120]
[320705322,1711521071170,-186.421212,0.0005589,120]
[320705323,1711521071181,-500.0,0.0005589,120]
[320705324,1711521071190,-500.0,0.0005589,120]
[320705325,1711521071200,-500.0,0.0005589,120]
[320705326,1711521071210,-886.98,0.0005589,120]
[320705327,1711521071220,-1063.66,0.0005589,120]
[320705328,1711521071231,-500.0,0.0005589,120]
[320705329,1711521071242,-564.03,0.0005589,120]
[320705330,1711521071251,-500.0,0.0005589,120]
[320705331,1711521071261,-500.0,0.0005589,120]
[320705332,1711521071270,-449.895944,0.0005589,120]
[320705333,1711521071280,-449.895944,0.0005589,120]
[320705334,1711521071290,-449.895944,0.0005589,120]
[320705335,1711521071300,-660.04,0.0005589,30]
[320705336,1711521071310,-735.21,0.0005589,120]
[320705337,1711521071320,-449.895944,0.0005589,120]
[320705338,1711521071329,-449.895944,0.0005589,120]
[320705339,1711521071339,-449.895944,0.0005589,120]
[320705340,1711521071349,-500.0,0.0005589,120]
[320705341,1711521071358,-711.59,0.0005589,120]
[320705342,1711521071367,-218.726235,0.0005589,120]
[320705343,1711521071377,-500.0,0.0005589,120]
[320705344,1711521071387,-218.726235,0.0005589,120]
[320705345,1711521071396,-218.726235,0.0005589,120]
[320705346,1711521071406,-218.726235,0.0005589,120]
[320705347,1711521071417,-218.726235,0.0005589,120]
[320705348,1711521071427,-2593.77,0.0005589,120]
[320705349,1711521071437,-218.726235,0.0005589,120]
[320705350,1711521071447,-500.0,0.0005589,120]
[320705351,1711521071457,-810.4,0.0005589,120]
[320705352,1711521071467,-1200.620511,0.0005589,120]
[320705353,1711521071479,-540.245892,0.0005589,120]
[320705354,1711521071492,-1200.620511,0.0005589,120]
[320705355,1711521071501,-540.245892,0.0005589,120]
[320705356,1711521071511,-1200.620511,0.0005589,120]
[320705357,1711521071522,-540.245892,0.0005589,120]
[320705358,1711521071534,-500.0,0.0005589,120]
[320705359,1711521071544,-764.98,0.0005589,120]
[320705360,1711521071554,-500.0,0.0005589,120]
[320705361,1711521071564,-500.0,0.0005589,120]
[320705362,1711521071574,-1200.620511,0.0005589,120]
[320705363,1711521071583,-540.245892,0.0005589,120]
[320705364,1711521071592,-1200.620511,0.0005589,120]
[320705365,1711521071603,-540.245892,0.0005589,120]
[320705366,1711521071614,-540.245892,0.0005589,120]
[320705367,1711521071623,-1200.620511,0.0005589,120]
[320705368,1711521071633,-155.92,0.0005589,120]
[320705369,1711521071644,-500.0,0.0005589,120]
[320705370,1711521071653,-500.0,0.0005589,120]
[320705371,1711521071662,-500.0,0.0005589,120]
[320705372,1711521071671,-151.0,0.0005589,120]
[320705373,1711521071681,-151.0,0.0005589,120]
[320705374,1711521071690,-151.0,0.0005589,120]
[320705375,1711521071700,-706.7,0.0005589,120]
[320705376,1711521071709,-530.09,0.0005589,120]
[320705377,1711521071718,-885.31,0.0005589,120]
[320705378,1711521071727,-152.152367,0.0005589,7]
[320705379,1711521071737,-500.0,0.0005589,120]
[320705380,1711521071746,-500.0,0.0005589,120]
[320705381,1711521071755,-500.0,0.0005589,120]
[320705382,1711521071765,-500.58,0.0005589,120]
[320705383,1711521071774,-523.683972,0.0005589,120]
[320705384,1711521071784,-523.683972,0.0005589,120]
[320705385,1711521071793,-523.683972,0.0005589,120]
[320705386,1711521071803,-500.0,0.0005589,120]
[320705387,1711521071812,-523.683972,0.0005589,120]
[320705388,1711521071824,-523.683972,0.0005589,120]
[320705389,1711521071834,-523.683972,0.0005589,120]
[320705390,1711521071843,-785.51,0.0005589,120]
[320705391,1711521071854,-745.76,0.0005589,120]
[320705392,1711521071866,-1521.44,0.0005589,120]
[320705393,1711521071876,-588.23,0.0005589,120]
[320705394,1711521071885,-628.98,0.0005589,120]
[320705395,1711521071897,-647.79,0.0005589,120]
[320705396,1711521071906,-500.0,0.0005589,120]
[320705397,1711521071917,-500.0,0.0005589,120]
[320705398,1711521071927,-151.0,0.0005589,60]
[320705399,1711521071936,-151.0,0.0005589,60]
[320705400,1711521071947,-151.0,0.0005589,60]
[320705401,1711521072108,-576.5,0.0005589,120]
[320705402,1711521072121,-500.0,0.0005589,120]
[320705403,1711521072130,-500.0,0.0005589,120]
[320705404,1711521072140,-503.91674222,0.0005589,120]
[320705405,1711521072149,-500.0,0.0005589,120]
[320705406,1711521072159,-500.0,0.0005589,120]
[320705407,1711521072169,-500.0,0.0005589,120]
[320705408,1711521072179,-500.0,0.0005589,120]
[320705409,1711521072188,-962.85,0.0005589,120]
[320705410,1711521072198,-500.0,0.0005589,120]
[320705411,1711521072207,-500.0,0.0005589,120]
[320705412,1711521072217,-500.0,0.0005589,120]
[320705413,1711521072226,-910.98,0.0005589,120]
[320705414,1711521072236,-500.0,0.0005589,120]
[320705415,1711521072246,-1358.55,0.0005589,120]
[320705416,1711521072256,-1237.35,0.0005589,120]
[320705417,1711521072265,-500.0,0.0005589,120]
[320705418,1711521072275,-426.56847446,0.0005589,120]
[320705419,1711521072285,-500.0,0.0005589,120]
[320705420,1711521072294,-500.0,0.0005589,7]
[320705421,1711521072304,-752.08,0.0005589,120]
[320705422,1711521072313,-839.66,0.0005589,120]
[320705423,1711521072322,-500.0,0.0005589,120]
[320705424,1711521072331,-1383.35,0.0005589,120]
[320705425,1711521072341,-1642.74,0.0005589,120]
[320705426,1711521072351,-776.16,0.0005589,120]
[320705427,1711521072360,-500.0,0.0005589,120]
[320705428,1711521072370,-610.62,0.0005589,120]
[320705429,1711521072379,-517.98,0.0005589,120]
[320705430,1711521072389,-500.0,0.0005589,120]
[320705431,1711521072398,-577.28,0.0005589,120]
[320705432,1711521072407,-639.3,0.0005589,120]
[320705433,1711521072418,-611.8,0.0005589,120]
[320705434,1711521072428,-510.04,0.0005589,120]
[320705435,1711521072438,-500.0,0.0005589,120]
[320705436,1711521072449,-500.0,0.0005589,120]
[320705437,1711521072459,-648.31,0.0005589,120]
[320705438,1711521072468,-720.11,0.0005589,120]
[320705439,1711521072478,-898.75,0.0005589,120]
[320705440,1711521072487,-581.72,0.0005589,120]
[320705441,1711521072497,-500.0,0.0005589,120]
[320705442,1711521072507,-500.0,0.0005589,120]
[320705443,1711521072516,-966.82,0.0005589,120]
[320705444,1711521072525,-500.0,0.0005589,120]
[320705445,1711521072535,-500.0,0.0005589,120]
[320705446,1711521072546,-1026.67,0.0005589,120]
[320705447,1711521072557,-177.051292,0.0005589,120]
[320705448,1711521072568,-177.051292,0.0005589,120]
[320705449,1711521072577,-500.0,0.0005589,120]
[320705450,1711521072587,-500.0,0.0005589,120]
[320705451,1711521072596,-177.051292,0.0005589,120]
[320705452,1711521072606,-177.051292,0.0005589,120]
[320705453,1711521072615,-290.80670749,0.0005589,120]
[320705454,1711521072624,-1026.185319,0.0005589,120]
[320705455,1711521072634,-1026.185319,0.0005589,120]
[320705456,1711521072643,-500.0,0.0005589,120]
[320705457,1711521072652,-330.23432942,0.0005589,120]
[320705458,1711521072966,-169.76567058,0.0005589,120]
[320705459,1711521072975,-123.48302628,0.0005589,120]
[320705460,1711521072989,-376.51697372,0.0005589,120]
[320705461,1711521072998,-340.02242552,0.0005589,120]
[320705462,1711521073010,-686.16289348,0.0005589,120]
[320705463,1711521073022,-1026.185319,0.0005589,120]
[320705464,1711521073031,-240.53095,0.0005589,120]
[320705465,1711521073041,-240.53095,0.0005589,120]
[320705466,1711521073051,-674.78294571,0.0005589,120]
[320705467,1711521073283,-491.863506,0.00039046,2]
[320705468,1711521073294,-415.23,0.00039046,2]
[320705469,1711521073328,-1374.916494,0.00039046,2]
[320705470,1711521073338,-500.0,0.00054795,120]
[320705471,1711521073348,-515.14705429,0.0005589,120]
[320705472,1711521073358,-533.13,0.0005589,120]
[320705473,1711521073368,-240.53095,0.0005589,120]
[320705474,1711521073378,-240.53095,0.0005589,120]
[320705475,1711521073388,-500.0,0.0005589,120]
[320705476,1711521073398,-546.39,0.0005589,120]
[320705477,1711521073407,-500.0,0.0005589,120]
[320705478,1711521073416,-819.27,0.0005589,120]
[320705479,1711521073426,-227.980814,0.0005589,120]
[320705480,1711521073436,-1374.56,0.0005589,120]
[320705481,1711521073446,-227.980814,0.0005589,120]
[320705482,1711521073456,-500.0,0.0005589,120]
[320705483,1711521073466,-1115.46185,0.0005589,77]
[320705484,1711521073475,-1559.12,0.0005589,120]
[320705485,1711521073485,-227.980814,0.0005589,120]
[320705486,1711521073495,-227.980814,0.0005589,120]
[320705487,1711521073505,-151.0,0.0005589,120]
[320705488,1711521073515,-151.0,0.0005589,120]
[320705489,1711521073524,-768.93,0.0005589,120]
[320705490,1711521073535,-918.12,0.0005589,120]
[320705491,1711521073546,-2296.54,0.0005589,120]
[320705492,1711521073556,-500.0,0.0005589,120]
[320705493,1711521073567,-3040.45,0.0005589,120]
[320705494,1711521073577,-500.0,0.0005589,120]
[320705495,1711521073587,-550.92,0.0005589,120]
[320705496,1711521073596,-1719.78,0.0005589,120]
[320705497,1711521073606,-750.43,0.0005589,120]
[320705498,1711521073616,-441.352056,0.0005589,120]
[320705499,1711521073625,-441.352056,0.0005589,120]
[320705500,1711521073635,-441.352056,0.0005589,120]
[320705501,1711521073644,-441.352056,0.0005589,120]
[320705502,1711521073654,-520.82,0.0005589,120]
[320705503,1711521073665,-151.0,0.0005589,120]
[320705504,1711521073674,-1545.96,0.0005589,120]
[320705505,1711521073684,-151.0,0.0005589,120]
[320705506,1711521073694,-500.0,0.0005589,120]
[320705507,1711521073703,-500.0,0.0005589,120]
[320705508,1711521073712,-931.8,0.0005589,120]
[320705509,1711521073721,-10185.17,0.0005589,120]
[320705510,1711521073731,-1071.27,0.0005589,120]
[320705511,1711521073741,-940.74,0.0005589,120]
[320705512,1711521073751,-185.850586,0.0005589,120]
[320705513,1711521073760,-185.850586,0.0005589,120]
[320705514,1711521073769,-5619.72,0.0005589,120]
[320705515,1711521073778,-182.728196,0.0005589,120]
[320705516,1711521073787,-182.728196,0.0005589,120]
[320705517,1711521073797,-500.0,0.0005589,120]
[320705518,1711521073807,-185.850586,0.0005589,120]
[320705519,1711521073816,-185.850586,0.0005589,120]
[320705520,1711521073825,-182.728196,0.0005589,120]
[320705521,1711521073836,-7137.91,0.0005589,120]
[320705522,1711521073846,-182.728196,0.0005589,120]
[320705523,1711521073856,-1599.33,0.0005589,120]
[320705524,1711521073865,-547.16,0.0005589,120]
[320705525,1711521073874,-500.0,0.0005589,120]
[320705526,1711521073883,-500.0,0.0005589,120]
[320705527,1711521073892,-500.0,0.0005589,120]
[320705528,1711521073902,-500.0,0.0005589,120]
[320705529,1711521073912,-100860.25,0.0005589,120]
[320705530,1711521073922,-500.0,0.0005589,120]
[320705531,1711521073931,-18551.05,0.0005589,120]
[320705532,1711521073941,-1023.17,0.0005589,120]
[320705533,1711521073951,-1117.04,0.0005589,120]
[320705534,1711521073961,-500.0,0.0005589,120]
[320705535,1711521073970,-500.0,0.0005589,120]
[320705536,1711521073980,-500.0,0.0005589,120]
[320705537,1711521073989,-5584.94,0.0005589,120]
[320705538,1711521073999,-500.0,0.0005589,120]
[320705539,1711521074008,-2428.33,0.0005589,120]
[320705540,1711521074017,-507.82,0.0005589,120]
[320705541,1711521074026,-500.0,0.0005589,120]
[320705542,1711521074035,-1854.59,0.0005589,120]
[320705543,1711521074044,-1970.07,0.0005589,120]
[320705544,1711521074054,-625.84,0.0005589,120]
[320705545,1711521074063,-614.74,0.0005589,120]
[320705546,1711521074072,-1722.79,0.0005589,120]
[320705547,1711521074081,-1489.51,0.0005589,120]
[320705548,1711521074090,-500.0,0.0005589,120]
[320705549,1711521074099,-500.0,0.0005589,120]
[320705550,1711521074108,-1819.69,0.0005589,120]
[320705551,1711521074118,-26680.58,0.0005589,120]
[320705552,1711521074127,-151.0,0.0005589,120]
[320705553,1711521074136,-151.0,0.0005589,120]
[320705554,1711521074147,-2871.78,0.0005589,120]
[320705555,1711521074155,-500.0,0.0005589,120]
[320705556,1711521074165,-500.0,0.0005589,120]
[320705557,1711521074174,-500.0,0.0005589,120]
[320705558,1711521074183,-2418.35,0.0005589,120]
[320705559,1711521074193,-151.0,0.0005589,120]
[320705560,1711521074202,-260.948008,0.0005589,120]
[320705561,1711521074212,-500.0,0.0005589,120]
[320705562,1711521074222,-2546.69,0.0005589,120]
[320705563,1711521074231,-2376.64,0.0005589,120]
[320705564,1711521074242,-23724.79,0.0005589,120]
[320705565,1711521074251,-500.0,0.0005589,120]
[320705566,1711521074260,-828.99,0.0005589,120]
[320705567,1711521074269,-2174.96,0.0005589,120]
[320705568,1711521074278,-500.0,0.0005589,120]
[320705569,1711521074287,-5578.25,0.0005589,120]
[320705570,1711521074296,-2023.94,0.0005589,120]
[320705571,1711521074305,-3047.21,0.0005589,120]
[320705572,1711521074314,-3121.61,0.0005589,120]
[320705573,1711521074323,-566.27,0.0005589,120]
[320705574,1711521074333,-1089.22,0.0005589,120]
[320705575,1711521074342,-500.0,0.0005589,120]
[320705576,1711521074351,-2145.53,0.0005589,120]
[320705577,1711521074360,-151.0,0.0005589,120]
[320705578,1711521074369,-151.0,0.0005589,120]
[320705579,1711521074378,-2507.6,0.0005589,120]
[320705580,1711521074388,-2288.7,0.0005589,120]
[320705581,1711521074398,-946.85,0.0005589,120]
[320705582,1711521074455,-1932.44,0.0005589,120]
[320705583,1711521074464,-1660.12,0.0005589,120]
[320705584,1711521074474,-1944.3,0.0005589,120]
[320705585,1711521074483,-500.0,0.0005589,120]
[320705586,1711521074494,-500.0,0.0005589,120]
[320705587,1711521074503,-5988.2,0.0005589,120]
[320705588,1711521074512,-1421.51,0.0005589,120]
[320705589,1711521074521,-513.76,0.0005589,7]
[320705590,1711521074531,-1321.39,0.0005589,120]
[320705591,1711521074541,-15214.99,0.0005589,120]
[320705592,1711521074550,-763.2,0.0005589,120]
[320705593,1711521074559,-278.72991014,0.0005589,120]
[320705594,1711521074574,-2429.89008986,0.0005589,120]
[320705595,1711521074583,-2882.01,0.0005589,120]
[320705596,1711521074593,-39037.22,0.0005589,120]
[320705597,1711521074602,-1088.68,0.0005589,120]
[320705598,1711521074611,-13102.81,0.0005589,120]
[320705599,1711521074621,-500.0,0.0005589,120]
[320705600,1711521074631,-5764.07,0.0005589,120]
[320705601,1711521074642,-61247.96,0.0005589,120]
[320705602,1711521074651,-2277.36,0.0005589,120]
[320705603,1711521074661,-5035.13,0.0005589,120]
[320705604,1711521074671,-188.67,0.0005589,120]
[320705605,1711521074680,-500.0,0.0005589,120]
[320705606,1711521074690,-500.0,0.0005589,120]
[320705607,1711521074701,-500.0,0.0005589,120]
[320705608,1711521074710,-4985.26,0.0005589,120]
[320705609,1711521074720,-1100.5,0.0005589,120]
[320705610,1711521074730,-500.0,0.0005589,120]
[320705611,1711521074740,-500.0,0.0005589,120]
[320705612,1711521074749,-500.0,0.0005589,120]
[320705613,1711521074758,-6245.09,0.0005589,120]
[320705614,1711521074767,-761.63,0.0005589,120]
[320705615,1711521074777,-785.53,0.0005589,120]
[320705616,1711521074786,-1859.18,0.0005589,120]
[320705617,1711521074795,-5640.33,0.0005589,120]
[320705618,1711521074806,-500.0,0.0005589,120]
[320705619,1711521074816,-1110.41,0.0005589,120]
[320705620,1711521074825,-1474.48,0.0005589,120]
[320705621,1711521074834,-500.0,0.0005589,120]
[320705622,1711521074843,-151.0,0.0005589,120]
[320705623,1711521074853,-5210.65,0.0005589,120]
[320705624,1711521074864,-6092.35,0.0005589,120]
[320705625,1711521074873,-500.0,0.0005589,120]
[320705626,1711521074883,-10654.12,0.0005589,120]
[320705627,1711521074892,-863.6,0.0005589,120]
[320705628,1711521074902,-11778.32,0.0005589,120]
[320705629,1711521074911,-5892.74,0.0005589,120]
[320705630,1711521074925,-151.0,0.0005589,120]
[320705631,1711521074934,-2552.4,0.0005589,120]
[320705632,1711521074943,-8707.98,0.0005589,120]
[320705633,1711521074952,-1030.12,0.0005589,120]
[320705634,1711521074961,-354.12286401,0.0005589,120]
[320705635,1711521074970,-11059.19,0.0005589,120]
[320705636,1711521074979,-7394.47,0.0005589,120]
[320705637,1711521074990,-1208.96,0.0005589,120]
[320705638,1711521075002,-4831.38,0.0005589,120]
[320705639,1711521075011,-5098.5,0.0005589,120]
[320705640,1711521075020,-1043.43,0.0005589,120]
[320705641,1711521075030,-151.0,0.0005589,120]
[320705642,1711521075040,-569.17,0.0005589,120]
[320705643,1711521075050,-17649.9,0.0005589,120]
[320705644,1711521075060,-281.86967075,0.0005589,120]
[320705645,1711521075071,-1162.65,0.0005589,120]
[320705646,1711521075080,-26501.87,0.0005589,120]
[320705647,1711521075090,-4072.42,0.0005589,120]
[320705648,1711521075100,-6552.0,0.0005589,120]
[320705649,1711521075110,-695.87,0.0005589,120]
[320705650,1711521075119,-21370.97,0.0005589,120]
[320705651,1711521075129,-2955.62,0.0005589,120]
[320705652,1711521075138,-6120.09,0.0005589,120]
[320705653,1711521075147,-2344.35,0.0005589,120]
[320705654,1711521075157,-1643.86,0.0005589,120]
[320705655,1711521075167,-151.0,0.0005589,120]
[320705656,1711521075178,-511.08,0.0005589,120]
[320705657,1711521075189,-500.0,0.0005589,120]
[320705658,1711521075204,-2911.99,0.0005589,120]
[320705659,1711521075214,-658.87,0.0005589,120]
[320705660,1711521075223,-2313.61,0.0005589,120]
[320705661,1711521075233,-151.0,0.0005589,120]
[320705662,1711521075244,-8548.94,0.0005589,120]
[320705663,1711521075253,-500.0,0.0005589,120]
[320705664,1711521075263,-500.0,0.0005589,120]
[320705665,1711521075272,-650.28,0.0005589,120]
[320705666,1711521075282,-1402.66,0.0005589,120]
[320705667,1711521075292,-6864.83,0.0005589,120]
[320705668,1711521075301,-500.0,0.0005589,120]
[320705669,1711521075310,-650.65,0.0005589,120]
[320705670,1711521075319,-9354.92,0.0005589,120]
[320705671,1711521075329,-5699.63,0.0005589,120]
[320705672,1711521075338,-2434.17,0.0005589,120]
[320705673,1711521075348,-13662.02,0.0005589,120]
[320705674,1711521075357,-500.0,0.0005589,120]
[320705675,1711521075367,-1317.25,0.0005589,120]
[320705676,1711521075377,-8973.4,0.0005589,120]
[320705677,1711521075387,-684.45,0.0005589,120]
[320705678,1711521075397,-1116.05,0.0005589,120]